[Event "Moscow Tal Memorial 5th"]
[Site "Moscow"]
[Date "2010.11.06"]
[Round "2"]
[White "Kramnik, Vladimir"]
[Black "Grischuk, Alexander"]
[Result "1/2-1/2"]
[ECO "D55"]
[WhiteElo "2790"]
[BlackElo "2760"]
[Annotator "Moradiabadi,E"]
[PlyCount "77"]
[EventDate "2010.11.05"]
[EventType "tourn"]
[EventRounds "9"]
[EventCountry "RUS"]
[EventCategory "21"]
[SourceTitle "CBM 139"]
[Source "ChessBase"]
[SourceDate "2010.11.18"]
[SourceVersion "1"]
[SourceVersionDate "2010.11.18"]
[SourceQuality "1"]
[TimeControl "40/6000+30:20/3000+30:900+30"]

{After an unusual upset for Kramnik (The number of his blunders against
Aronian are equal to the total he made over the last two years) one would
expect a tough battle from Kramnik as white, however taking a rest day seems
to be the norm among world champions these days! Remember Anand after his loss
against Bacrot. Though Kramnik tried something, he didn't seem to be in the
mood to take advantage of his opponent's errors.} 1. Nf3 d5 2. d4 Nf6 3. c4 e6
4. Nc3 Be7 5. Bg5 h6 6. Bxf6 Bxf6 7. e3 O-O 8. Qc2 Na6 9. a3 c5 10. Rd1 dxc4
$146 {#} (10... cxd4 11. Nxd4 Nc7 12. Be2 Qe7 {is the main line but it is
funny that such an obvious move has never been tried before.}) 11. Bxc4 cxd4
12. exd4 Bd7 13. O-O Rc8 14. Ba2 {Black is ok.} (14. Bxa6 bxa6 {would just
have left White with the headache of the pair of bishops!}) 14... Bc6 15. Ne5
Bxe5 16. dxe5 Qh4 17. f4 Rcd8 18. Rd6 Nc7 19. Qd3 g6 $6 {#This move could have
cost Grischuk the game.} 20. Rd1 $2 {returns the favor. Bc4 was mandatory in
order to control the b5 square} Rxd6 21. Qxd6 Nb5 22. Nxb5 Bxb5 {Now the
position is 'arid'.} 23. Qc5 Be2 24. g3 Qh3 25. Re1 Bf3 26. Qf2 Bc6 27. Qf1
Qxf1+ 28. Rxf1 Rd8 29. Bb3 Rd3 30. Bc2 Rd2 31. Rf2 Rd4 32. Kf1 Kf8 33. Ke2 Ke7
34. Ke3 Rc4 35. Bd3 Rc1 36. Rf1 Rc5 37. Rf2 Rc1 38. Rf1 Rc5 39. Rf2 1/2-1/2

[Event "Paris FIDE GP"]
[Site "Elancourt"]
[Date "2013.09.27"]
[Round "5"]
[White "Ivanchuk, Vassily"]
[Black "Grischuk, Alexander"]
[Result "0-1"]
[ECO "D83"]
[WhiteElo "2731"]
[BlackElo "2785"]
[Annotator "ChessBase Website"]
[PlyCount "62"]
[EventDate "2013.09.22"]
[EventType "tourn"]
[EventRounds "11"]
[EventCountry "FRA"]
[EventCategory "20"]
[SourceTitle "CBM 157"]
[Source "ChessBase"]
[SourceDate "2013.11.12"]
[SourceVersion "1"]
[SourceVersionDate "2013.11.12"]
[SourceQuality "1"]
[TimeControl "40/7200:20/3600:900+30"]
[WhiteClock "2:00:00"]
[BlackClock "2:00:00"]

1. d4 {[%emt 0:00:03]} Nf6 {[%emt 0:00:09]} 2. c4 {[%emt 0:00:04]} g6 {[%emt 0:
00:23]} 3. Nc3 {[%emt 0:00:04]} d5 {[%emt 0:00:14]} 4. Bf4 {[%emt 0:00:04]} Bg7
{[%emt 0:00:20]} 5. e3 {[%emt 0:00:04]} O-O {[%emt 0:03:13]} 6. Rc1 {[%emt 0:
02:50] A topical line in the Gruenfeld. The old response...} Be6 {[%emt 0:08:
41]} (6... c5 {has come out of fashion because of} 7. dxc5 Qa5 8. cxd5 Ne4 9.
Nge2 {and White's had amazing results in this variation.}) 7. c5 $5 {[%emt 0:
02:15] 'A move that has already been tried a few times. The idea is to quickly
expand on the queenside while destroying Black's possibility of counterplay on
the center. As a bonus, the move ...Be6 now looks silly. On the other hand
White has to be worried about a quick e5 break.'} c6 {[%emt 0:04:53]} 8. b4 {
[%emt 0:04:11] 'This however is unheard of. White usually develops his pieces
first.'} (8. h3 b6 9. b4 Ne4 10. Bd3 a5 11. Na4 Nd7 12. f3 b5 $1 $13 {
Jumabayev - So, 2012}) 8... Nbd7 {[%emt 0:08:58]} (8... Nh5 {immediately
pursuing the bishop, is also an interesting idea.}) 9. Bd3 {[%emt 0:13:43]} Nh5
{[%emt 0:10:19]} 10. Nge2 {[%emt 0:06:45]} f6 {[%emt 0:14:11] 'Black is trying
to play Bf7 and e5, there is no rush in exchanging on f4 as that bishop is not
going anywhere. The game highly resembles and a6 Slav, except that Black has
not committed to that weakness yet.'} 11. h4 {[%emt 0:13:33]} (11. h3 Nxf4 (
11... f5 12. Bh2 Bf7 13. f4 $13) 12. exf4 Bf7 13. f5 e5 $1 {And Black has
nothing to complain about.}) 11... Bf7 $5 {[%emt 0:06:54] Allowing the bishop
to live, but Grischuk has a specific idea in mind.'} 12. Bh2 {[%emt 0:01:48]}
f5 $1 {[%emt 0:00:11] 'This is the point. Black is going to force e5 in the
next move and obtain more than adequate counterplay. As a possible idea Black
can consider locking the center with e5-e4 and then pushing f4 with proper
preparation, alternatively he can take on d4 and hope to presure down the
diagonal and/or obtain e5 for his pieces.'} 13. f4 $2 {[%emt 0:00:03][%csl Rg4,
Rh2] This move is too anti-positional; the idea of course is to prevent e5,
but White is giving up too many factors to do this.'} Nhf6 {[%emt 0:13:13]
'White's light squares are too weak. If White's pawn was on h3 maybe this
would be acceptable, but Black is clearly better as it is in this situation.'}
14. Bg3 {[%emt 0:07:24]} Ng4 {[%emt 0:01:21]} 15. Qd2 {[%emt 0:02:53]} Ndf6 {
[%emt 0:08:08]} 16. Nd1 {[%emt 0:00:12]} Ne4 {[%emt 0:02:05]} 17. Bxe4 {
[%emt 0:00:06]} dxe4 {[%emt 0:00:16] 'One powerful knight has been destroyed,
but suddenly that bishop on f7 has gained life.'} 18. a4 {[%emt 0:01:16]} b6 {
[%emt 0:15:16] 'Breaking the position open is very natural: White's bishop on
g3 won't play a roll any time soon and the pair of bishops need scope.'} 19. h5
{[%emt 0:00:45]} gxh5 {[%emt 0:05:27]} 20. Bh4 {[%emt 0:01:05]} Bf6 {[%emt 0:
00:10] 'Trading off h4 wasn't necessary, but it's not bad either. White had to
sacrifice a pawn for this and more importantly the g-file is now open for
Black's rooks.'} 21. Bxf6 {[%emt 0:04:06]} Nxf6 {[%emt 0:00:02]} 22. Nf2 {
[%emt 0:00:16]} Kh8 {[%emt 0:01:13]} 23. O-O {[%emt 0:01:01]} Rg8 {[%emt 0:00:
40]} 24. b5 {[%emt 0:00:05]} Rc8 {[%emt 0:04:00]} 25. cxb6 {[%emt 0:08:46]}
Qxb6 {[%emt 0:00:02]} 26. a5 {[%emt 0:00:08]} Qb7 {[%emt 0:01:00]} 27. bxc6 {
[%emt 0:00:10]} Rxc6 {[%emt 0:00:02]} 28. Rxc6 {[%emt 0:00:05]} Qxc6 {[%emt 0:
00:02]} 29. Rc1 {[%emt 0:00:01]} Qa6 {[%emt 0:00:56] 'Black is better in every
sense: He has an extra pawn, better minor pieces, more activity and a safer
king. White's position doesn't need to collapse immediately but it is very
hard to play this.'} 30. Rc5 $2 {[%emt 0:00:36]} Bc4 $1 {[%emt 0:00:47] A
beautiful maneuver that finishes the game.'} 31. Nc3 {[%emt 0:04:57]} Bf1 {
[%emt 0:00:04] 'And suddenly White's g-pawn is defenseless! Of course after
that White's position will collapse and he has no counterplay whatsoever.'} 0-1

[Event "EU-Cup 30th"]
[Site "Bilbao"]
[Date "2014.09.17"]
[Round "4.2"]
[White "Dominguez Perez, Leinier"]
[Black "Grischuk, Alexander"]
[Result "0-1"]
[ECO "B33"]
[WhiteElo "2755"]
[BlackElo "2789"]
[Annotator "Chirila,C"]
[PlyCount "102"]
[EventDate "2014.09.14"]
[EventType "team-swiss"]
[EventRounds "7"]
[EventCountry "ESP"]
[SourceTitle "CBM 163"]
[Source "ChessBase"]
[SourceDate "2014.11.11"]
[SourceVersion "1"]
[SourceVersionDate "2014.11.11"]
[SourceQuality "1"]
[WhiteTeam "St Petersburg"]
[BlackTeam "Malachite Sverdlovsk Region"]
[WhiteTeamCountry "RUS"]
[BlackTeamCountry "RUS"]
[TimeControl "40/5400+30:1800+30"]

{I will not comment on the opening too much, it does not belong to our topic} 
1. e4 c5 2. Nf3 Nc6 3. d4 cxd4 4. Nxd4 Nf6 5. Nc3 e5 {The Schveshnikov, an
opening that has not been in the spotlight recently, even so it still remains
an extremely theoretical and classic opening.} 6. Ndb5 d6 7. Bg5 a6 8. Na3 b5
9. Nd5 (9. Bxf6 gxf6 10. Nd5 f5 11. Bd3 {is the other main option to combat
this opening}) 9... Be7 10. Bxf6 Bxf6 11. c3 (11. c4 {this move seems to have
gotten all the attention recently. I like to think white maintains a nice,
long lasting advantage due to his massive control of the d5 square and the
potential that it offers.} b4 12. Nc2 a5 13. g3 O-O 14. h4 Be6 15. Bh3 $14)
11... Rb8 12. Nc2 Bg5 13. a4 bxa4 14. Ncb4 Nxb4 15. cxb4 O-O 16. Rxa4 a5 17. b5
Bd7 18. Nc3 d5 $5 (18... Qb6 {this is the main line in this position, the game
continuation is clearly something Grischuk had deeply analyzed at home} 19. Bc4
Kh8 20. O-O f5 21. exf5 Bxf5 22. Qe2 Rbc8 23. Kh1 Bd7 24. f3 {was seen in
Dominguez Perez, L- Frolyanov,D 1-0 just a few months ago}) 19. Nxd5 (19. exd5
e4 20. Be2 (20. Rxe4 $5 f5 21. Rd4 Bf6 {black clearly has enough compensation
for the material deficit, Dominguez was clearly not in the mood to check
Sasha's home recipes}) 20... e3 21. f3 Bh4+ 22. g3 Bf6 23. O-O Bxc3 24. bxc3
Bxb5 $11) 19... Be7 20. Qb3 Bb4+ 21. Nxb4 axb4 22. Bc4 Bxb5 23. Bxb5 Rxb5 24.
O-O {the position is fairly equal, it is clear that black has a slight
pressure but with good care white should not have trouble maintaining equality}
Qd4 25. Re1 g6 26. g3 Rc8 27. Raa1 Kg7 28. Rad1 Qc4 29. Qxc4 Rxc4 {the
position is completely equal, Dominguez starts to relax thinking that any move
will maintain the balance.} 30. Rd7 $2 {first innacuracy} (30. Rd2 {it is very
important to firstly take control of the second rank} Rbc5 31. Kf1 h5 32. h4
Kf6 33. Re3 Ke6 34. Ke2 f5 35. exf5+ gxf5 36. Red3 $11) 30... Rc2 31. b3 (31.
Ra1 {already a desperate solution, but probably the best} Rb6 (31... Rxb2 $2
32. Raa7 Kf6 33. Rxf7+ Ke6 34. Rfe7+ Kd6 $11) 32. Raa7 Rf6 33. f4 g5 $1 (33...
exf4 34. e5 Rf5 35. e6 fxg3 36. Rxf7+ Kh6 37. hxg3 Re5 38. Rf2 Rc1+ 39. Kg2
Rxe6 $15) (33... Rxb2 34. fxe5 Rff2 35. e6 $11) 34. fxe5 Rff2 35. e6 Rg2+ 36.
Kf1 Rcf2+ 37. Ke1 Rxb2 38. Kf1 Rxh2 39. Kg1 $11 {white will hold, it is
extremely important to always look for counterplay in such situations. But as
expected, once the character of the position has changed it's extremely hard
to make the proper adjustments to your playing style.}) 31... Rb2 32. Re3 Rb6
$1 33. Rf3 Rf6 34. Rdd3 h5 {black is slowly squizing his opponent, exerting an
enormous pressure} 35. h3 (35. h4 Re2 36. Rxf6 Kxf6 37. Re3 Rb2 {with a
similar position as in the game, with the pawn on h3 white tries to maintain
the flexibility of his structure}) 35... Re2 36. Rxf6 Kxf6 37. Re3 (37. Rd6+ {
white could have tried a more active defense, but black still keeps a strong
advantage} Ke7 38. Rb6 Rxe4 39. h4 f6 40. Kg2 Rd4 41. Kh2 g5 42. hxg5 fxg5 43.
Kh3 h4 44. Kg2 Kd7 45. Kh3 (45. Rg6 hxg3 46. Rxg5 gxf2 47. Kxf2 Kd6 $16) 45...
Kc7 46. Rb5 Kd6 47. f3 Ke6 48. Rb6+ Kd5 49. Rb5+ Kd6 $16) 37... Rb2 38. Rf3+
Ke6 39. g4 Rb1+ 40. Kg2 h4 {its important to fix another possible weakness on
h3} 41. Rd3 (41. g5 Ke7 42. Rd3 (42. Kh2 Rc1 43. Kg2 Rc3 44. Re3 Rxe3 45. fxe3
f6 $19) 42... f6 43. gxf6+ Kxf6 44. Kf3 Kg5 $17) 41... f6 42. Kf3 f5 43. exf5+
gxf5 44. gxf5+ Kxf5 45. Ke2 Rb2+ 46. Kf1 Ke4 $19 {position is hopeless, the
passivity of white's pieces is simply too much} 47. Re3+ Kd4 48. Rf3 e4 49. Rf4
(49. Re3 Rd2 50. Ke1 Rd3 51. Ke2 Rxe3+ 52. fxe3+ Kc3 $19) 49... Rxb3 50. Rxh4
Rd3 51. Rh8 b3 {A brutal example of how the most guiltless innacuracies will
be taxed by a motivated opponent that knows his endgame theory. White simply
forgot to defend his second rank with Rd2, which in my opinion was the fatal
mistake in a completely equal position.} 0-1

[Event "WchT 10th"]
[Site "Tsaghkadzor"]
[Date "2015.04.27"]
[Round "8.1"]
[White "Amin, Bassem"]
[Black "Grischuk, Alexander"]
[Result "1/2-1/2"]
[ECO "A37"]
[WhiteElo "2634"]
[BlackElo "2794"]
[PlyCount "166"]
[EventDate "2015.04.19"]
[EventType "team-tourn"]
[EventRounds "9"]
[EventCountry "ARM"]
[SourceTitle "CBM 166"]
[Source "ChessBase"]
[SourceDate "2015.05.11"]
[SourceVersion "1"]
[SourceVersionDate "2015.05.11"]
[SourceQuality "1"]
[WhiteTeam "Egypt"]
[BlackTeam "Russia"]
[WhiteTeamCountry "EGY"]
[BlackTeamCountry "RUS"]
[TimeControl "40/5400+30:1800+30"]

1. Nf3 c5 2. g3 g6 3. Bg2 Bg7 4. O-O Nc6 5. d3 d6 6. a3 e5 7. c4 Nge7 8. Nc3
O-O 9. Rb1 a5 10. Bd2 h6 11. Ne1 Be6 12. Nd5 a4 13. Nc3 Qa5 14. Nb5 Qd8 15. Nc3
Qa5 16. Nc2 Rfb8 17. Ne3 Nd4 18. Ncd5 Qd8 19. Nxe7+ Qxe7 20. Nd5 Qd8 21. e3 Nb3
22. Bc3 b5 23. cxb5 Rxb5 24. f4 Rc8 25. g4 exf4 26. Rxf4 Be5 27. Rxa4 Qg5 28.
Bxe5 dxe5 29. Qe2 Qd8 30. Nc3 Rb6 31. Rd1 Rd6 32. Re4 c4 33. d4 exd4 34. exd4
Nxd4 35. Qe3 Nb5 36. Rxd6 Nxd6 37. Rxe6 fxe6 38. Qxe6+ Kf8 39. Qxg6 Nf7 40. Bd5
Rc7 41. Qb6 Qd6 42. Qxd6+ Nxd6 43. Kf2 Rc8 44. Ke3 Rb8 45. a4 Rxb2 46. Kd4 Ke7
47. a5 Nb5+ 48. Kxc4 Nxc3 49. Kxc3 Rb5 50. Kd4 Rxa5 51. Ke5 Ra3 52. h4 Rh3 53.
h5 Ra3 54. Be4 Ra5+ 55. Kf4 Kf6 56. Bf5 Ra4+ 57. Ke3 Ke5 58. Kd3 Rd4+ 59. Ke3
Rd8 60. Kf3 Ra8 61. Ke3 Ra3+ 62. Kd2 Kd4 63. Ke2 Rb3 64. Bg6 Re3+ 65. Kf2 Ra3
66. Bf5 Ke5 67. Ke2 Kf4 68. Kd2 Ra8 69. Kd3 Rd8+ 70. Kc4 Ke5 71. Kc3 Rd4 72.
Kb3 Kf4 73. Kc2 Kf3 74. Kb3 Ke2 75. Kc2 Rc4+ 76. Kb3 Rc1 77. Kb2 Rc5 78. Kb3
Ke3 79. Kb4 Kd4 80. Bg6 Rc7 81. Kb3 Rc6 82. Bf5 Rc4 83. Bg6 Rc5 1/2-1/2

[Event "WchT 10th"]
[Site "Tsaghkadzor"]
[Date "2015.04.28"]
[Round "9.1"]
[White "Grischuk, Alexander"]
[Black "Gelfand, Boris"]
[Result "1/2-1/2"]
[ECO "A33"]
[WhiteElo "2794"]
[BlackElo "2747"]
[PlyCount "32"]
[EventDate "2015.04.19"]
[EventType "team-tourn"]
[EventRounds "9"]
[EventCountry "ARM"]
[SourceTitle "CBM 166"]
[Source "ChessBase"]
[SourceDate "2015.05.11"]
[SourceVersion "1"]
[SourceVersionDate "2015.05.11"]
[SourceQuality "1"]
[WhiteTeam "Russia"]
[BlackTeam "Israel"]
[WhiteTeamCountry "RUS"]
[BlackTeamCountry "ISR"]
[TimeControl "40/5400+30:1800+30"]

1. Nf3 c5 2. c4 Nc6 3. d4 cxd4 4. Nxd4 Nf6 5. Nc3 e6 6. g3 Qb6 7. e3 d5 8. cxd5
Nxd5 9. Na4 Bb4+ 10. Bd2 Qa5 11. Nxc6 bxc6 12. b3 Nb6 13. Nb2 Bb7 14. a3 Bxd2+
15. Qxd2 Qd5 16. Qxd5 cxd5 1/2-1/2

[Event "Khanty-Mansiysk FIDE GP"]
[Site "Khanty-Mansiysk"]
[Date "2015.05.14"]
[Round "1"]
[White "Grischuk, Alexander"]
[Black "Svidler, Peter"]
[Result "1/2-1/2"]
[ECO "D22"]
[WhiteElo "2780"]
[BlackElo "2734"]
[PlyCount "61"]
[EventDate "2015.05.14"]
[EventType "tourn"]
[EventRounds "11"]
[EventCountry "RUS"]
[EventCategory "21"]
[SourceTitle "CBM 167"]
[Source "ChessBase"]
[SourceDate "2015.07.13"]
[SourceVersion "1"]
[SourceVersionDate "2015.07.13"]
[SourceQuality "1"]
[TimeControl "40/7200+30:1000/900+30:0"]
[WhiteClock "1:20:57"]
[BlackClock "1:19:30"]

1. d4 {[%emt 0:00:43]} d5 {[%emt 0:00:55]} 2. c4 {[%emt 0:01:13]} dxc4 {
[%emt 0:00:42] Someone call the press! Svidler did not play the Grunfeld! That,
however, was the only highlight of a game that was dead drawn by move 18.} 3.
Nf3 {[%emt 0:04:08]} a6 {[%emt 0:02:51]} 4. e3 {[%emt 0:01:57]} b5 {[%emt 0:01:
08]} 5. a4 {[%emt 0:00:39]} Bb7 {[%emt 0:00:37]} 6. b3 {[%emt 0:00:39]} e6 {
[%emt 0:03:39]} 7. bxc4 {[%emt 0:01:21]} bxc4 {[%emt 0:01:09]} 8. Bxc4 {
[%emt 0:00:43]} Nf6 {[%emt 0:01:42]} 9. O-O {[%emt 0:03:18]} Nbd7 {[%emt 0:05:
57]} 10. Nbd2 {[%emt 0:04:55]} Be7 {[%emt 0:04:26]} 11. Rb1 {[%emt 0:02:32]}
Rb8 {[%emt 0:00:58]} 12. Qe2 {[%emt 0:04:54]} O-O {[%emt 0:04:47]} 13. Bxa6 {
[%emt 0:04:59]} (13. Bb2 c5 14. Bxa6 Bxa6 15. Qxa6 Ra8 16. Qc4 Nb6 17. Qc2 Nxa4
18. Ba1 cxd4 19. Bxd4 Qc8 20. Nc4 Nd5 21. Rfc1 Nac3 22. Bxc3 Qxc4 23. Bd4 Qxc2
24. Rxc2 Rfc8 25. Rxc8+ Rxc8 26. g3 f6 27. e4 Nb4 28. Be3 Kf7 29. Rc1 Rxc1+ 30.
Bxc1 Nc6 {1/2-1/2 (30) Cheparinov,I (2681)-Svidler,P (2751) Tromso 2014}) 13...
Bxa6 {[%emt 0:01:00]} 14. Qxa6 {[%emt 0:00:42]} Rxb1 {[%emt 0:07:20]} 15. Nxb1
{[%emt 0:00:47]} Qa8 {[%emt 0:00:33]} 16. Qxa8 {[%emt 0:08:04]} Rxa8 {[%emt 0:
00:40]} 17. Ba3 {[%emt 0:00:39]} Bxa3 {[%emt 0:03:17]} 18. Nxa3 {[%emt 0:01:18]
} Rxa4 {[%emt 0:00:33]} 19. Nb1 $146 {[%emt 0:03:22]} (19. Ra1 c5 20. dxc5 Nxc5
21. Nc2 Rxa1+ 22. Nxa1 Kf8 23. Nc2 Kg8 24. Kf1 Kf8 25. Kg1 Kg8 26. Kf1 Kf8 27.
Kg1 Kg8 28. Kf1 Kf8 {1/2-1/2 (28) Jianu,V (2565)-Stevic,H (2611) Warsaw 2013})
19... c5 {[%emt 0:05:12]} 20. dxc5 {[%emt 0:00:37]} Nxc5 {[%emt 0:00:33]} 21.
Nc3 {[%emt 0:00:47]} Ra3 {[%emt 0:01:33]} 22. Nb1 {[%emt 0:01:05]} Ra1 {
[%emt 0:00:42]} 23. Nbd2 {[%emt 0:00:38]} Rxf1+ {[%emt 0:00:36]} 24. Kxf1 {
[%emt 0:00:33]} Kf8 {[%emt 0:00:37]} 25. Ne5 {[%emt 0:00:36]} Nfd7 {[%emt 0:00:
38]} 26. Nxd7+ {[%emt 0:00:35]} Nxd7 {[%emt 0:00:36]} 27. Ke2 {[%emt 0:00:33]}
Ke7 {[%emt 0:00:35]} 28. Ne4 {[%emt 0:00:33]} h6 {[%emt 0:00:46]} 29. h3 {
[%emt 0:00:35]} Nf6 {[%emt 0:00:54]} 30. Nd2 {[%emt 0:00:36]} Nd7 {[%emt 0:00:
34]} 31. Ne4 {[%emt 0:00:32]} 1/2-1/2

[Event "Khanty-Mansiysk FIDE GP"]
[Site "Khanty-Mansiysk"]
[Date "2015.05.19"]
[Round "5"]
[White "Grischuk, Alexander"]
[Black "Gelfand, Boris"]
[Result "1/2-1/2"]
[ECO "B53"]
[WhiteElo "2780"]
[BlackElo "2744"]
[PlyCount "56"]
[EventDate "2015.05.14"]
[EventType "tourn"]
[EventRounds "11"]
[EventCountry "RUS"]
[EventCategory "21"]
[SourceTitle "CBM 167"]
[Source "ChessBase"]
[SourceDate "2015.07.13"]
[SourceVersion "1"]
[SourceVersionDate "2015.07.13"]
[SourceQuality "1"]
[TimeControl "40/7200:20/3600:900+30"]

1. e4 {[%emt 0:00:19]} c5 {[%emt 0:00:07]} 2. Nf3 {[%emt 0:00:07]} d6 {[%emt 0:
00:02]} 3. d4 {[%emt 0:02:23]} cxd4 {[%emt 0:00:16]} 4. Qxd4 {[%emt 0:00:05]}
Nc6 {[%emt 0:03:51]} 5. Bb5 {[%emt 0:00:29]} Bd7 {[%emt 0:00:03]} 6. Qd3 {
[%emt 0:00:13]} Nf6 {[%emt 0:00:29]} 7. Bg5 {[%emt 0:01:08]} (7. c4 Ne5 8. Nxe5
dxe5 9. Qe2 e6 10. O-O Bxb5 11. cxb5 Bc5 12. Rd1 Qb6 13. a4 O-O 14. Bd2 Rfd8
15. Nc3 Bd4 16. Be1 Rac8 17. h3 h6 18. Rac1 Qd6 19. Na2 Qf8 20. Ba5 Rxc1 21.
Rxc1 Rc8 22. Bc3 Qd6 23. g3 Bxc3 24. Nxc3 Qb4 25. Rd1 Rc4 26. Rd8+ Kh7 27. Rb8
Rc7 28. Rd8 Rc4 29. Rb8 Rc7 30. Rd8 Rd7 31. Rxd7 Nxd7 32. Qf3 Kg8 33. Qd1 Qd4
34. Qe2 Nc5 35. a5 Nb3 36. a6 b6 {Nepomniachtchi,I (2714)-Gelfand,B (2759)
Sochi 2014 1/2-1/2}) 7... Ng4 {[%emt 0:11:18]} 8. h3 {[%emt 0:16:20]} Nge5 {
[%emt 0:01:45]} 9. Nxe5 {[%emt 0:00:34]} Nxe5 {[%emt 0:02:20]} 10. Bxd7+ {
[%emt 0:02:36] The 4.Qxd4 anti-Sicilian chosen by Grischuk led to massive
simplifications and a quick draw} Qxd7 {[%emt 0:00:24]} 11. Qb3 {[%emt 0:00:05]
} e6 {[%emt 0:15:14]} 12. Na3 {[%emt 0:37:18]} Be7 {[%emt 0:04:00]} 13. Bxe7 {
[%emt 0:01:21]} Qxe7 {[%emt 0:00:08]} 14. Qb5+ {[%emt 0:00:42]} Nc6 {[%emt 0:
02:40]} 15. O-O-O {[%emt 0:04:09]} O-O {[%emt 0:03:04]} 16. Rd2 {[%emt 0:05:46]
} Rad8 {[%emt 0:15:10]} 17. Rhd1 {[%emt 0:26:45]} a6 {[%emt 0:08:06]} 18. Qb6 {
[%emt 0:00:42]} d5 {[%emt 0:00:30]} 19. exd5 {[%emt 0:00:14]} Rxd5 {[%emt 0:05:
07]} 20. Rxd5 {[%emt 0:02:49]} exd5 {[%emt 0:00:08]} 21. Rxd5 {[%emt 0:00:07]}
Nb4 {[%emt 0:00:45]} 22. Rd1 {[%emt 0:00:03]} Nxa2+ {[%emt 0:00:33]} 23. Kb1 {
[%emt 0:00:05]} Nb4 {[%emt 0:00:48]} 24. Qd6 {[%emt 0:00:26]} Qe2 {[%emt 0:03:
30]} 25. Rd2 {[%emt 0:00:30]} Qe1+ {[%emt 0:01:10]} 26. Rd1 {[%emt 0:00:01]}
Qe2 {[%emt 0:02:37]} 27. Rd2 {[%emt 0:01:06]} Qe1+ {[%emt 0:00:10]} 28. Rd1 {
[%emt 0:00:01]} Qe2 {[%emt 0:00:12]} 1/2-1/2